bitfinex/quotes_SOLUSD_20250815
["timestamp","ask_amount","ask_price","bid_price","bid_amount"]
[1755290187555,0.71000001,184.84,184.83,43.5090596]
[1755290187933,0.71000001,184.84,184.83,48.9194367]
[1755290188239,0.71000001,184.84,184.83,39.0]
[1755290188648,0.71000001,184.84,184.83,44.4103771]
[1755290188956,0.71000001,184.84,184.83,48.9194367]
[1755290190059,0.71000001,184.84,184.83,5.4103771]
[1755290190237,0.71000001,184.84,184.83,39.02]
[1755290191062,4.7288503,184.84,184.82,39.0]
[1755290191244,0.71000001,184.84,184.81,39.0]
[1755290191430,5.21905961,184.84,184.81,39.0]
[1755290191745,0.71,184.83,184.8,39.0]
[1755290192662,0.71,184.83,184.8,38.98]
[1755290192864,0.71,184.82,184.8,38.98]
[1755290193163,0.71,184.81,184.8,38.98]
[1755290193733,7.82085165,184.81,184.77,79.23]
[1755290193955,0.71,184.8,184.77,123.62208926]
[1755290194264,1e-08,184.84,184.79,7.11085165]
[1755290194466,1e-08,184.84,184.83,12.52122875]
[1755290195361,1e-08,184.84,184.82,51.52146694]
[1755290195570,11.43829323,184.84,184.81,38.98]
[1755290195743,7.11085165,184.82,184.79,38.98]
[1755290195947,7.11085165,184.82,184.77,79.23]
[1755290195948,11.84990444,184.81,184.77,79.23]
[1755290196157,0.71,184.8,184.77,118.23]
[1755290196358,0.71,184.8,184.77,130.75290774]
[1755290196846,7.82085165,184.79,184.77,0.03]
[1755290197263,0.71,184.78,184.77,0.03]
[1755290197991,4.33635106,184.81,184.77,5.44203822]
[1755290198140,7.11085165,184.81,184.77,5.44203822]
[1755290198346,10.73720271,184.81,184.77,5.44203822]
[1755290198550,0.71,184.8,184.77,5.44203822]
[1755290198857,0.71,184.79,184.77,5.44203822]
[1755290199057,0.71,184.79,184.77,0.03]
[1755290199270,3.62635106,184.8,184.77,0.03]
[1755290199559,0.71,184.78,184.77,0.03]
[1755290201138,4.33635106,184.81,184.77,0.03]
[1755290201345,7.65821317,184.8,184.77,0.03]
[1755290201540,4.33635106,184.8,184.77,0.03]
[1755290201776,0.71,184.8,184.77,0.03]
[1755290201968,4.33635106,184.8,184.77,0.03]
[1755290202173,0.71,184.8,184.77,0.03]
[1755290202552,4.33635106,184.83,184.79,7.11085165]
[1755290202878,0.71,184.83,184.8,5.41125541]
[1755290203054,0.71,184.82,184.8,5.41125541]
[1755290204266,1e-08,184.84,184.81,7.11085165]
[1755290204467,1e-08,184.84,184.8,52.19210706]
[1755290204684,0.71000001,184.84,184.8,52.19210706]
[1755290204984,0.71,184.83,184.8,44.39125541]
[1755290205357,0.68,184.82,184.8,44.39125541]
[1755290205882,1e-08,184.84,184.8,51.50210706]
[1755290206081,1e-08,184.84,184.82,7.11085165]
[1755290206663,1e-08,184.84,184.82,7.81085165]
[1755290206971,1e-08,184.84,184.83,5.4103771]
[1755290208894,0.68000001,184.84,184.81,7.11085165]
[1755290209191,0.68,184.83,184.81,5.41092701]
[1755290209400,0.68,184.83,184.8,118.18]
[1755290209401,0.68,184.82,184.8,123.59121018]
[1755290209695,1e-08,184.84,184.8,123.59121018]
[1755290209892,0.68000001,184.84,184.8,123.62121018]
[1755290210521,1e-08,184.84,184.82,7.11085165]
[1755290210885,1e-08,184.84,184.83,7.11085165]
[1755290211073,1e-08,184.84,184.83,13.22122875]
[1755290212101,1e-08,184.84,184.83,5.4103771]
[1755290213100,1e-08,184.84,184.83,12.52122875]
[1755290213399,1e-08,184.84,184.83,13.22122875]
[1755290213596,1e-08,184.84,184.83,5.4103771]
[1755290213805,1e-08,184.84,184.83,12.52122875]
[1755290215299,1e-08,184.84,184.83,5.4103771]
[1755290215486,3.63761314,184.84,184.83,5.4103771]
[1755290215693,1e-08,184.84,184.83,5.4103771]
[1755290216686,1e-08,184.84,184.83,9.92126358]
[1755290216910,4.31749401,184.84,184.81,44.29086703]
[1755290217109,3.637494,184.83,184.81,44.29086703]
[1755290217292,1e-08,184.84,184.81,44.29086703]
[1755290217494,3.6378332,184.83,184.81,44.29086703]
[1755290217717,1e-08,184.84,184.81,44.29086703]
[1755290217910,3.6378332,184.83,184.81,5.41086703]
[1755290218115,0.68,184.83,184.81,5.41086703]
[1755290218605,1e-08,184.84,184.81,5.41086703]
[1755290218907,4.31785502,184.83,184.8,123.52122745]
[1755290219098,3.63785502,184.82,184.8,123.52122745]
[1755290219298,4.51088649,184.84,184.8,123.52122745]
[1755290219623,3.63807592,184.83,184.8,123.52122745]
[1755290219795,3.63807592,184.82,184.8,123.52122745]
[1755290219998,3.63812512,184.81,184.8,38.91]
[1755290220217,4.31812512,184.81,184.8,0.03]
[1755290220417,12.87162782,184.81,184.8,0.03]
[1755290220608,32.48720709,184.81,184.8,0.03]
[1755290220821,41.10621557,184.79,184.78,0.03]
[1755290221137,15.10621557,184.78,184.77,0.03]
[1755290221299,27.97937531,184.78,184.77,0.03]
[1755290221999,33.39121641,184.78,184.77,0.03]
[1755290222723,33.39121641,184.78,184.75,0.03]
[1755290222724,41.10621557,184.76,184.75,0.03]
[1755290223050,22.22848449,184.75,184.66,0.03]
[1755290223219,15.10621557,184.71,184.66,0.03]
[1755290223415,33.12226892,184.67,184.66,0.03]
[1755290223615,40.80454218,184.67,184.66,0.03]
[1755290223830,40.79711243,184.67,184.66,0.03]
[1755290223998,36.76039404,184.67,184.66,0.03]
[1755290224199,3.63812512,184.67,184.66,0.03]
[1755290224425,10.76039404,184.69,184.66,0.73]
[1755290224852,7.12226892,184.68,184.66,0.03]
[1755290225161,7.12226892,184.67,184.66,0.03]
[1755290225856,7.12226892,184.68,184.66,0.03]
[1755290226230,7.12226892,184.67,184.66,0.03]
[1755290226634,33.12226892,184.7,184.66,0.73]
[1755290227058,7.80226892,184.71,184.67,0.7]
[1755290227233,7.12226892,184.7,184.67,0.7]
[1755290227430,7.12226892,184.74,184.68,0.7]
[1755290227642,7.12226892,184.72,184.68,0.7]
[1755290228060,7.12226892,184.72,184.68,6.11469788]
[1755290228243,38.94,184.75,184.7,7.12226892]
[1755290228440,38.94,184.75,184.71,0.7]
[1755290228441,3.62014316,184.74,184.71,0.7]
[1755290228754,46.06226892,184.75,184.71,0.7]
[1755290229632,7.12226892,184.72,184.67,12.53726624]
[1755290230168,7.80226892,184.72,184.67,13.23726624]
[1755290230854,7.80226892,184.72,184.68,0.7]
[1755290231660,7.12226892,184.72,184.68,6.11466729]
[1755290231830,7.12226892,184.73,184.68,5.41466729]
[1755290232036,72.06226892,184.75,184.7,7.12226892]
[1755290232256,72.06226892,184.75,184.71,0.7]
[1755290232460,72.74226892,184.75,184.7,7.12226892]
[1755290232831,72.74226892,184.75,184.7,7.82226892]
[1755290233128,64.94,184.75,184.71,7.82226892]
[1755290233341,64.94,184.75,184.71,0.7]
[1755290233540,72.74226892,184.75,184.71,5.41381952]
[1755290234668,64.94,184.75,184.72,0.7]
[1755290234871,64.94,184.75,184.71,5.41381952]
[1755290235047,65.62,184.75,184.71,5.41381952]
[1755290235597,72.74226892,184.75,184.71,5.41381952]
[1755290236857,0.67,184.74,184.7,12.5363849]
[1755290237365,10.74139127,184.74,184.69,5.41441934]
[1755290237575,7.12226892,184.71,184.67,0.03]
[1755290237777,7.12226892,184.68,184.67,0.03]
[1755290239403,7.12226892,184.69,184.67,0.03]
[1755290239960,33.12226892,184.72,184.68,0.68]
[1755290240176,3.61767479,184.71,184.68,0.68]
[1755290240491,26.0,184.72,184.69,13.21672183]
[1755290240686,26.0,184.72,184.68,5.41474107]
[1755290240990,26.67,184.72,184.68,5.41474107]
[1755290241195,26.0,184.72,184.68,13.21700999]
[1755290243166,26.67,184.72,184.68,13.21700999]
[1755290243458,18.85852358,184.79,184.71,7.12226892]
[1755290243459,5.41157106,184.79,184.71,7.12226892]
[1755290243659,4.0181022,184.76,184.69,79.88]
[1755290243885,10.73865376,184.77,184.72,7.12226892]
[1755290244087,0.06,184.75,184.72,7.12226892]
[1755290244671,0.06,184.75,184.72,12.53576716]
[1755290245590,0.06,184.75,184.73,0.68]
[1755290246676,0.06,184.75,184.73,6.09319438]
[1755290247219,0.06,184.75,184.72,12.5358413]
[1755290247490,0.06,184.75,184.72,5.41357238]
[1755290247708,0.06,184.75,184.72,13.2158413]
[1755290249183,0.06,184.75,184.74,7.12226892]
[1755290249781,0.06,184.75,184.74,7.80226892]
[1755290251273,0.06,184.75,184.74,92.4152818]
[1755290251478,0.06,184.75,184.74,13.2152818]
[1755290252576,0.06,184.75,184.71,12.53616096]
[1755290252799,0.06,184.75,184.71,13.21616096]
[1755290253267,0.06,184.75,184.71,12.53616096]
[1755290253466,0.06,184.75,184.72,7.80226892]
[1755290253701,0.06,184.75,184.74,7.12226892]
[1755290254079,0.06,184.75,184.74,7.80226892]
[1755290254821,0.06,184.75,184.74,13.2152818]
[1755290255115,0.06,184.75,184.74,5.41301288]
[1755290256810,0.06,184.75,184.73,9.92868717]
[1755290257014,0.06,184.75,184.73,10.60868717]
[1755290257601,0.06,184.75,184.73,5.4133059]
[1755290257998,0.06,184.75,184.72,5.41357954]
[1755290258187,0.06,184.75,184.7,44.05538127]
[1755290258188,8.80222188,184.74,184.7,38.86]
[1755290258386,3.61684061,184.74,184.7,43.37538127]
[1755290258605,3.61684061,184.74,184.71,0.68]
[1755290258790,3.68611702,184.75,184.71,6.09374101]
[1755290259197,3.62611702,184.74,184.71,6.09374101]
[1755290259517,0.06,184.75,184.71,6.09374101]
[1755290259720,3.62791802,184.74,184.71,6.09374101]
[1755290260416,4.57538127,184.75,184.71,6.09374101]
[1755290260594,7.66319975,184.74,184.71,6.09374101]
[1755290260794,4.57538127,184.75,184.71,6.09374101]
[1755290261012,7.66319831,184.74,184.71,6.09374101]
[1755290261223,3.63192528,184.73,184.71,6.09374101]
[1755290261402,4.57538127,184.75,184.71,6.09374101]
[1755290261609,7.66800203,184.74,184.71,6.09374101]
[1755290261803,3.63221459,184.73,184.71,5.41374101]
[1755290262113,5.24538127,184.75,184.71,5.41374101]
[1755290262317,7.67144918,184.74,184.71,6.09374101]
[1755290262515,3.63384341,184.73,184.71,6.09374101]
[1755290262720,5.24538127,184.75,184.71,6.09374101]
[1755290263026,7.67199264,184.74,184.71,6.09374101]
[1755290263225,7.6741322,184.73,184.71,6.09374101]
[1755290263397,3.6341023,184.72,184.71,6.09374101]
[1755290265829,3.6341023,184.72,184.71,10.60912228]
[1755290266326,0.06,184.75,184.71,10.60912228]
[1755290266522,3.63857804,184.74,184.73,4.51538127]
[1755290266723,3.63857804,184.74,184.73,44.05538127]
[1755290266927,3.63812348,184.74,184.73,44.05538127]
[1755290267122,0.06,184.75,184.73,0.68]
[1755290267324,4.31811873,184.74,184.72,38.86]
[1755290267629,7.6807042,184.73,184.72,38.86]
[1755290267838,12.19608547,184.73,184.7,0.03]
[1755290268015,4.51538127,184.71,184.7,0.03]
[1755290268206,31.84224006,184.71,184.7,0.03]
[1755290268533,27.98230104,184.71,184.68,0.03]
[1755290268716,4.51538127,184.69,184.68,0.03]
[1755290269033,12.19608547,184.69,184.68,0.03]
[1755290269412,8.3607042,184.69,184.68,0.03]
[1755290269614,17.42615082,184.69,184.68,0.03]
[1755290269833,22.84062913,184.69,184.68,0.03]
[1755290270116,17.42615082,184.69,184.68,0.03]
[1755290270624,22.84062913,184.69,184.68,0.03]
[1755290270931,37.9468447,184.69,184.68,0.03]
[1755290271112,33.39677935,184.69,184.68,0.03]
[1755290271314,15.10621557,184.68,184.66,0.03]
[1755290271514,72.90977864,184.68,184.66,0.03]
[1755290271928,92.84230104,184.68,184.66,0.03]
[1755290273441,77.73608547,184.68,184.66,0.03]
[1755290273646,38.19608547,184.68,184.66,0.03]
[1755290273855,33.6807042,184.68,184.66,0.03]
[1755290274048,38.19608547,184.68,184.66,0.03]
[1755290274542,38.87608547,184.68,184.66,0.03]
[1755290274750,44.29085696,184.68,184.66,0.03]
[1755290275248,38.87608547,184.68,184.66,0.03]
[1755290275416,44.29085696,184.68,184.66,0.03]
[1755290276717,38.87608547,184.68,184.66,0.03]
[1755290277148,77.73608547,184.68,184.66,0.03]
[1755290278334,77.05608547,184.68,184.66,0.03]
[1755290281749,38.19608547,184.68,184.66,0.03]
[1755290281923,7.6807042,184.68,184.67,0.71]
[1755290282427,29.63841642,184.68,184.67,0.71]
[1755290282750,3.63841642,184.68,184.67,0.71]
[1755290283548,3.63841642,184.68,184.67,6.12506471]
[1755290283931,3.63841642,184.7,184.67,6.12506471]
[1755290284249,3.63841642,184.69,184.67,6.12506471]
[1755290284426,3.63841642,184.68,184.67,6.12506471]
[1755290285850,3.63841642,184.68,184.67,0.03]
[1755290286052,53.97698848,184.68,184.67,0.03]
[1755290286223,92.83698848,184.68,184.67,0.03]
[1755290286728,88.32160721,184.68,184.67,0.03]
[1755290286922,92.83698848,184.68,184.67,0.03]
[1755290287151,98.25175997,184.68,184.67,0.03]
[1755290287743,41.10621557,184.67,184.66,0.03]
[1755290287950,58.51807031,184.67,184.66,0.03]
[1755290288127,32.51807031,184.67,184.66,0.03]
[1755290289524,37.93313502,184.67,184.66,0.03]
[1755290290543,26.0,184.65,184.64,0.03]
[1755290290728,19.62159684,184.64,184.63,0.03]
[1755290290928,27.97698848,184.64,184.63,0.03]
[1755290291446,27.97236832,184.64,184.63,0.03]
[1755290291652,33.38831286,184.64,184.63,0.03]
[1755290293154,37.92031045,184.64,184.63,0.03]
[1755290295337,33.38831286,184.64,184.63,0.03]
[1755290297465,45.62159684,184.62,184.6,0.03]
[1755290297637,92.15236832,184.62,184.6,0.03]
[1755290298334,96.68191675,184.62,184.6,0.03]
[1755290298535,101.07680928,184.62,184.6,0.03]
[1755290298736,96.54726085,184.62,184.6,0.03]
[1755290298937,7.67077148,184.62,184.61,0.86]
[1755290299243,3.63841642,184.63,184.61,0.86]
[1755290299454,3.63841642,184.62,184.61,5.61682465]
[1755290299754,3.63841642,184.65,184.61,10.13220592]
[1755290299964,3.63841642,184.64,184.62,5.17538127]
[1755290300132,3.63841642,184.66,184.63,0.66]
[1755290300335,3.63841642,184.65,184.63,0.66]
[1755290300568,4.51538127,184.66,184.64,0.66]
[1755290300743,3.62287731,184.65,184.64,0.66]
[1755290301143,3.62287731,184.65,184.63,5.41607214]
[1755290301338,43.37538127,184.67,184.63,5.41607214]
[1755290301651,3.62382306,184.66,184.64,0.66]
[1755290301839,3.62382306,184.65,184.64,0.66]
[1755290303537,3.62382306,184.65,184.64,6.07594454]
[1755290304158,3.62382306,184.65,184.64,10.59132581]
[1755290304539,3.62382306,184.67,184.64,10.59132581]
[1755290304734,3.62382306,184.66,184.65,5.17538127]
[1755290305161,3.62382306,184.66,184.65,10.5910325]
[1755290305367,3.62382306,184.66,184.65,6.07565123]
[1755290306064,7.65457739,184.66,184.63,0.66]
[1755290306239,12.16995866,184.65,184.61,0.2]
[1755290306441,7.65576274,184.64,184.62,0.66]
[1755290306745,3.62382306,184.63,184.61,0.2]
[1755290306953,7.65608591,184.62,184.61,0.2]
[1755290307155,3.62382306,184.62,184.61,0.86]
[1755290307560,7.65721351,184.62,184.61,0.2]
[1755290308078,12.17259478,184.62,184.61,0.2]
[1755290308666,17.58912603,184.62,184.61,0.2]
[1755290308968,22.79867446,184.62,184.61,0.2]
[1755290309662,76.76489003,184.62,184.61,0.2]
[1755290309857,76.08489003,184.62,184.61,0.2]
[1755290310062,46.51721351,184.62,184.61,0.86]
[1755290310278,7.65721351,184.62,184.61,0.86]
[1755290310573,12.17259478,184.62,184.61,0.86]
[1755290311576,12.17259478,184.62,184.61,0.2]
[1755290311749,12.17817516,184.62,184.61,0.2]
[1755290311950,22.80425484,184.62,184.61,0.2]
[1755290312880,16.70772359,184.62,184.61,0.2]
[1755290313058,22.12425484,184.62,184.61,0.2]
[1755290313270,18.27470641,184.62,184.6,0.03]
[1755290313469,37.92888039,184.61,184.6,0.03]
[1755290313657,33.38121538,184.61,184.6,0.03]
[1755290313975,31.83210858,184.61,184.6,0.03]
[1755290314496,27.28788493,184.61,184.6,0.03]
[1755290314659,31.83560138,184.61,184.6,0.03]
[1755290315554,37.25242603,184.61,184.6,0.03]
[1755290315782,33.38470958,184.61,184.6,0.03]
[1755290316784,37.25183573,184.61,184.6,0.03]
[1755290317863,32.70470958,184.61,184.6,0.03]
[1755290319677,27.28788493,184.61,184.6,0.03]
[1755290319889,33.38470958,184.61,184.6,0.03]
[1755290322163,29.08088652,184.61,184.6,0.03]
[1755290322495,70.70765308,184.61,184.6,0.03]
[1755290322867,7.67970267,184.61,184.6,0.69]
[1755290324075,12.87508394,184.61,184.6,0.03]
[1755290324279,22.83826216,184.61,184.6,0.03]
[1755290324467,61.69826216,184.61,184.6,0.03]
[1755290324795,76.80447773,184.61,184.6,0.03]
[1755290325090,76.80447773,184.61,184.59,0.03]
[1755290325091,51.05508394,184.61,184.59,0.03]
[1755290325265,42.74223223,184.6,184.59,0.03]
[1755290325461,7.67970267,184.6,184.59,0.03]
[1755290325786,3.63723764,184.6,184.59,0.03]
[1755290326089,3.63723764,184.6,184.59,0.74]
[1755290327088,3.63723764,184.6,184.59,5.25538127]
[1755290327588,3.63723764,184.6,184.59,10.67279283]
[1755290327894,0.06,184.64,184.59,10.67279283]
[1755290328096,7.67950755,184.63,184.62,4.51538127]
[1755290328476,7.67950755,184.63,184.62,5.22538127]
[1755290329194,3.6376803,184.63,184.62,5.22538127]
[1755290329589,3.6376803,184.63,184.62,10.64191252]
[1755290330594,0.06,184.64,184.62,10.64191252]
[1755290330808,0.06,184.64,184.63,5.22538127]
[1755290331397,0.06,184.64,184.63,10.64161915]
[1755290332525,1e-08,184.66,184.63,10.64161915]
[1755290332725,1e-08,184.68,184.67,26.0]
[1755290332929,0.06,184.7,184.67,69.89688774]
[1755290333084,0.06,184.7,184.68,0.71]
[1755290333311,0.06,184.7,184.69,4.51538127]
[1755290333511,0.06,184.7,184.69,14.44524085]
[1755290333512,1e-08,184.7,184.69,14.44524085]
[1755290333730,1e-08,184.7,184.69,15.69668868]
[1755290334117,1e-08,184.7,184.69,30.80290425]
[1755290334511,1e-08,184.7,184.69,10.63985958]
[1755290335243,1e-08,184.7,184.69,15.15524085]
[1755290335630,1e-08,184.7,184.69,15.69668868]
[1755290336741,1e-08,184.7,184.69,13.77957328]
[1755290337515,0.06,184.74,184.72,5.41359896]
[1755290337737,0.06,184.74,184.73,46.47497773]
[1755290337943,0.06,184.74,184.73,47.18497773]
[1755290338432,0.06,184.74,184.73,46.64364714]
[1755290339416,0.06,184.74,184.73,45.93364714]
[1755290339626,0.06,184.74,184.73,51.34695304]
[1755290339916,0.06,184.74,184.73,52.05695304]
[1755290340117,0.06,184.74,184.73,51.34695304]
[1755290342121,0.06,184.74,184.73,52.05695304]
[1755290342342,0.06,184.74,184.73,51.34695304]
[1755290344532,0.74,184.74,184.69,81.369256]
[1755290344742,0.68,184.73,184.7,38.82]
[1755290345015,0.06,184.74,184.72,7.11364714]
[1755290345213,0.06,184.74,184.73,7.11364714]
[1755290345445,0.06,184.74,184.73,7.82364714]
[1755290345829,0.06,184.74,184.73,46.62364714]
[1755290346547,0.06,184.74,184.73,131.23695304]
[1755290346757,0.06,184.75,184.73,146.34316861]
[1755290346937,0.06,184.78,184.77,33.11364714]
[1755290347128,0.06,184.78,184.77,71.91364714]
[1755290347337,0.06,184.78,184.77,72.62364714]
[1755290347855,1e-08,184.78,184.77,87.72986271]
[1755290348153,1e-08,184.79,184.78,15.10621557]
[1755290348338,1e-08,184.79,184.78,22.21986271]
[1755290348652,1e-08,184.79,184.78,22.92986271]
[1755290348858,1e-08,184.79,184.78,28.34170381]
[1755290349852,1e-08,184.8,184.78,28.34170381]
[1755290350054,1e-08,184.81,184.8,15.10621557]
[1755290350259,1e-08,184.81,184.8,22.21986271]
[1755290350422,1e-08,184.81,184.8,22.92986271]
[1755290351148,1e-08,184.81,184.8,28.34111812]
[1755290351349,1e-08,184.81,184.8,13.23490255]
[1755290351533,1e-08,184.81,184.8,12.52490255]
[1755290351727,1e-08,184.81,184.8,51.32490255]
[1755290352046,1e-08,184.81,184.8,52.03490255]
[1755290352420,1e-08,184.81,184.8,5.41125541]
[1755290352655,1e-08,184.81,184.8,51.32490255]
[1755290354421,1e-08,184.81,184.8,44.21125541]
[1755290354642,1e-08,184.81,184.8,52.03490255]
[1755290354847,1e-08,184.81,184.8,131.23490255]
[1755290355344,1e-08,184.81,184.8,130.52490255]
[1755290355719,1e-08,184.81,184.8,123.41125541]
[1755290355927,0.68000001,184.81,184.8,118.0]
[1755290356346,0.68000001,184.81,184.8,117.98]
[1755290356855,1e-08,184.81,184.8,127.90352986]
[1755290357148,1e-08,184.81,184.8,117.98]
[1755290357517,0.68000001,184.81,184.77,4.51227445]
[1755290357751,0.68,184.8,184.76,9.92470138]
[1755290357922,4.51227446,184.81,184.77,38.78]
[1755290358255,0.68,184.79,184.77,38.78]
[1755290359023,0.68,184.78,184.76,7.11266415]
[1755290359241,0.68,184.77,184.74,7.11266415]
[1755290359463,1e-08,184.81,184.76,7.11266415]
[1755290359641,1e-08,184.81,184.79,7.11266415]
[1755290359948,0.68000001,184.81,184.74,0.68]
[1755290360158,3.99341684,184.8,184.76,7.11266415]
[1755290360323,0.68,184.8,184.77,45.89266415]
[1755290360652,0.68,184.8,184.77,51.30473698]
[1755290361358,4.27528432,184.8,184.77,51.30473698]
[1755290361730,3.59528432,184.8,184.77,51.30473698]
[1755290362052,3.59528433,184.81,184.77,51.30473698]
[1755290362361,1e-08,184.81,184.8,7.11266415]
[1755290362537,1e-08,184.81,184.8,45.89266415]
[1755290362848,1e-08,184.81,184.8,46.57266415]
[1755290363745,1e-08,184.81,184.8,47.11378969]
[1755290364462,1e-08,184.81,184.8,45.41238095]
[1755290364638,1e-08,184.81,184.8,131.7250451]
[1755290364961,1e-08,184.81,184.8,131.18391956]
[1755290365656,1e-08,184.81,184.8,146.29013513]
[1755290367766,1e-08,184.83,184.81,15.10621557]
[1755290367939,1e-08,184.83,184.82,46.43373113]
[1755290368265,1e-08,184.83,184.82,40.00106698]
[1755290368564,4.00495541,184.83,184.82,51.30333399]
[1755290369153,7.61216336,184.83,184.82,52.52440097]
[1755290369343,4.00495541,184.83,184.82,52.52440097]
[1755290370151,7.61549424,184.83,184.82,52.52440097]
[1755290370459,1e-08,184.84,184.82,52.52440097]
[1755290370645,1e-08,184.84,184.83,7.11266415]
[1755290370842,1e-08,184.84,184.83,102.09887972]
[1755290371047,0.06,184.86,184.84,15.10621557]
[1755290371242,0.06,184.86,184.85,45.89266415]
[1755290371442,1e-08,184.86,184.85,140.87887972]
[1755290372961,1e-08,184.86,184.85,146.28867144]
[1755290373859,1e-08,184.86,184.85,148.45592944]
[1755290374160,1e-08,184.86,184.85,147.77592944]
[1755290374359,3.6167611,184.86,184.85,91.72245587]
[1755290374556,4.2967611,184.86,184.85,130.48245587]
[1755290374863,3.6167611,184.86,184.85,130.48245587]
[1755290376642,3.6167611,184.86,184.85,131.16245587]
[1755290377063,1e-08,184.86,184.85,131.16245587]
[1755290381161,1e-08,184.87,184.86,41.10621557]
[1755290381363,1e-08,184.87,184.86,49.43982962]
[1755290381670,1e-08,184.87,184.86,33.11266415]
[1755290382674,4.02397046,184.87,184.86,89.11789745]
[1755290382846,4.02397046,184.87,184.86,127.87789745]
[1755290383252,1e-08,184.87,184.86,127.87789745]
[1755290383754,8.32525522,184.87,184.86,127.87789745]
[1755290384172,7.64525522,184.87,184.86,127.87789745]
[1755290384362,8.32525522,184.87,184.86,123.36949908]
[1755290384546,8.32525522,184.87,184.86,117.96]
[1755290385850,8.32525522,184.87,184.86,123.36949908]
[1755290387176,4.30119622,184.87,184.86,123.36949908]
[1755290388064,4.30119622,184.87,184.86,117.96]
[1755290388264,8.33070743,184.87,184.86,79.2]
[1755290388566,8.33070743,184.87,184.85,38.76]
[1755290388766,4.32119621,184.86,184.85,38.76]
[1755290390149,3.62119621,184.86,184.85,44.16979172]
[1755290390370,3.62949594,184.86,184.85,44.16979172]
[1755290391073,1e-08,184.87,184.85,44.16979172]
[1755290391247,0.70000001,184.87,184.85,44.16979172]
[1755290391667,1e-08,184.87,184.86,5.19839837]
[1755290392876,1e-08,184.88,184.86,83.70839837]
[1755290393066,1e-08,184.88,184.87,49.36760483]
[1755290394257,1e-08,184.89,184.88,4.50839837]
[1755290394571,1e-08,184.89,184.88,5.19839837]
[1755290394774,1e-08,184.9,184.88,84.39839837]
[1755290394978,1e-08,184.9,184.89,43.95839837]
[1755290395359,1e-08,184.9,184.89,128.56701971]
[1755290396172,1e-08,184.9,184.89,127.87701971]
[1755290396378,1e-08,184.9,184.89,128.56701971]
[1755290400758,1e-08,184.9,184.89,127.87701971]
[1755290401584,1e-08,184.9,184.89,84.60862134]
[1755290401760,1e-08,184.9,184.89,127.85701971]
[1755290402271,0.70000001,184.9,184.89,84.60862134]
[1755290402792,1e-08,184.9,184.89,123.34862134]
[1755290402964,1e-08,184.9,184.89,127.85701971]
[1755290403355,0.70000001,184.9,184.89,123.34862134]
[1755290403582,0.70000001,184.9,184.89,44.14862134]
[1755290405774,0.70000001,184.9,184.86,79.2]
[1755290406087,3.63234631,184.89,184.87,38.74]
[1755290406254,1e-08,184.9,184.87,38.74]
[1755290406457,0.7,184.88,184.87,38.74]
[1755290406884,1e-08,184.9,184.87,44.14920229]
[1755290407054,1e-08,184.9,184.88,4.50839837]
[1755290407258,1e-08,184.9,184.89,38.74]
[1755290407480,1e-08,184.9,184.89,43.24839837]
[1755290407683,1e-08,184.9,184.89,123.13839837]
[1755290407887,1e-08,184.91,184.89,43.93839837]
[1755290408091,1e-08,184.91,184.9,5.19839837]
[1755290408591,1e-08,184.91,184.9,10.60672719]
[1755290408987,1e-08,184.92,184.9,25.71294276]
[1755290409288,1e-08,184.92,184.91,43.93839837]
[1755290410485,1e-08,184.93,184.92,9.91614225]
[1755290410679,0.06,184.96,184.92,89.80614225]
[1755290410994,0.06,184.96,184.94,4.50839837]
[1755290411364,0.06,184.96,184.94,5.19839837]
[1755290411575,0.06,184.96,184.94,10.60555744]
[1755290411787,0.06,184.96,184.94,49.34555744]
[1755290412009,1e-08,184.95,184.94,49.34555744]
[1755290412569,1e-08,184.95,184.94,48.65555744]
[1755290412971,1e-08,184.95,184.94,49.34555744]
[1755290413388,1e-08,184.95,184.94,48.65555744]
[1755290413695,1e-08,184.95,184.94,49.34555744]
[1755290413864,1e-08,184.95,184.94,48.65555744]